[Event "*** SCC Grand Prix: Titled Tuesday Blitz"]
[Site "Chess.com"]
[Date "2020.07.07"]
[Round "7"]
[White "hongnhung1234"]
[Black "luizwas"]
[Result "1-0"]
[WhiteElo "2208"]
[BlackElo "1822"]
[TimeControl "180+1"]
[EndTime "11:16:44 PDT"]
[Termination "hongnhung1234 won by resignation"]

1. e4 {[%clk 0:03:00.9]} 1... e6 {[%clk 0:02:59.2]} 2. d4 {[%clk 0:03:00.6]}
2... d5 {[%clk 0:02:59.5]} 3. Nc3 {[%clk 0:03:00.1]} 3... Bb4 {[%clk 0:02:59.3]}
4. e5 {[%clk 0:03:00]} 4... c5 {[%clk 0:02:58.6]} 5. a3 {[%clk 0:03:00.3]} 5...
Bxc3+ {[%clk 0:02:57.7]} 6. bxc3 {[%clk 0:03:01.2]} 6... Qc7 {[%clk 0:02:57.6]}
7. Qg4 {[%clk 0:02:59.5]} 7... f5 {[%clk 0:02:57.9]} 8. Qg3 {[%clk 0:02:34.2]}
8... cxd4 {[%clk 0:02:57.1]} 9. cxd4 {[%clk 0:02:26.1]} 9... Ne7 {[%clk
0:02:57.2]} 10. Bd2 {[%clk 0:02:17.8]} 10... Nbc6 {[%clk 0:02:52.4]} 11. Nf3
{[%clk 0:02:12.1]} 11... Bd7 {[%clk 0:02:42.2]} 12. Bd3 {[%clk 0:02:09.4]} 12...
O-O {[%clk 0:02:40.1]} 13. O-O {[%clk 0:02:04]} 13... Ng6 {[%clk 0:02:37.5]} 14.
Rac1 {[%clk 0:01:45.5]} 14... Qb6 {[%clk 0:02:35.4]} 15. c3 {[%clk 0:01:37]}
15... Rac8 {[%clk 0:02:15.2]} 16. Ng5 {[%clk 0:01:28.9]} 16... Qd8 {[%clk
0:02:06.9]} 17. Qh3 {[%clk 0:01:22.9]} 17... h6 {[%clk 0:02:03]} 18. Qh5 {[%clk
0:01:16.5]} 18... Be8 {[%clk 0:01:47.6]} 19. Nxe6 {[%clk 0:01:14.6]} 19... Qe7
{[%clk 0:01:42]} 20. Nxf8 {[%clk 0:01:14]} 20... Nxf8 {[%clk 0:01:41.8]} 21.
Qxf5 {[%clk 0:01:10.7]} 21... Bg6 {[%clk 0:01:39.6]} 22. Qxc8 {[%clk 0:01:10.2]}
22... Bxd3 {[%clk 0:01:38.8]} 23. Rfe1 {[%clk 0:01:10.5]} 23... Qxa3 {[%clk
0:01:33.1]} 24. Qxb7 {[%clk 0:01:05.8]} 24... Nd8 {[%clk 0:01:32.6]} 25. Qxd5+
{[%clk 0:01:04.2]} 25... Kh8 {[%clk 0:01:28.8]} 26. Qxd8 {[%clk 0:01:03.9]} 1-0

[Event "*** SCC Grand Prix: Titled Tuesday Blitz"]
[Site "Chess.com"]
[Date "2020.07.07"]
[Round "7"]
[White "HanSchut"]
[Black "dodorox"]
[Result "1-0"]
[WhiteElo "2299"]
[BlackElo "2083"]
[TimeControl "180+1"]
[EndTime "11:17:01 PDT"]
[Termination "HanSchut won by resignation"]

1. e4 {[%clk 0:03:00.9]} 1... e6 {[%clk 0:02:58.8]} 2. d4 {[%clk 0:03:00.5]}
2... d5 {[%clk 0:02:58.9]} 3. Nd2 {[%clk 0:03:01.2]} 3... Nc6 {[%clk 0:02:58.5]}
4. Ngf3 {[%clk 0:03:00.9]} 4... Nf6 {[%clk 0:02:58.4]} 5. Bd3 {[%clk 0:03:00.9]}
5... dxe4 {[%clk 0:02:45.4]} 6. Nxe4 {[%clk 0:03:01.8]} 6... Be7 {[%clk
0:02:35.9]} 7. c3 {[%clk 0:02:59.1]} 7... b6 {[%clk 0:02:24.5]} 8. Qe2 {[%clk
0:02:57]} 8... Bb7 {[%clk 0:02:20.1]} 9. h4 {[%clk 0:02:47.2]} 9... Nxe4 {[%clk
0:01:45.5]} 10. Bxe4 {[%clk 0:02:46.7]} 10... Qd6 {[%clk 0:01:29.2]} 11. Ne5
{[%clk 0:02:16.3]} 11... Bf6 {[%clk 0:00:31.5]} 12. Bf4 {[%clk 0:02:09.7]} 12...
Bxe5 {[%clk 0:00:25.9]} 13. Bxe5 {[%clk 0:01:47.6]} 13... Qd7 {[%clk 0:00:13.5]}
14. Bxg7 {[%clk 0:01:44]} 14... Rg8 {[%clk 0:00:13.8]} 15. Bf6 {[%clk
0:01:43.9]} 15... Ne7 {[%clk 0:00:11.2]} 16. Bxb7 {[%clk 0:01:40.6]} 1-0

[Event "*** SCC Grand Prix: Titled Tuesday Blitz"]
[Site "Chess.com"]
[Date "2020.07.07"]
[Round "7"]
[White "UKR_Master"]
[Black "yamalchess"]
[Result "1-0"]
[WhiteElo "2323"]
[BlackElo "2438"]
[TimeControl "180+1"]
[EndTime "11:17:04 PDT"]
[Termination "UKR_Master won by resignation"]

1. e4 {[%clk 0:03:00.9]} 1... e5 {[%clk 0:02:59.8]} 2. Nf3 {[%clk 0:03:00.9]}
2... Nc6 {[%clk 0:03:00.3]} 3. Bb5 {[%clk 0:03:01.4]} 3... a6 {[%clk 0:03:00.5]}
4. Ba4 {[%clk 0:03:01.7]} 4... Nf6 {[%clk 0:03:01]} 5. O-O {[%clk 0:03:02.3]}
5... b5 {[%clk 0:03:01.6]} 6. Bb3 {[%clk 0:03:02.1]} 6... Bb7 {[%clk 0:03:02]}
7. Re1 {[%clk 0:03:00.5]} 7... Bc5 {[%clk 0:03:01.6]} 8. c3 {[%clk 0:03:00.1]}
8... Ng4 {[%clk 0:03:01.2]} 9. Re2 {[%clk 0:02:52.6]} 9... d6 {[%clk 0:02:58.7]}
10. h3 {[%clk 0:02:50.8]} 10... Nh6 {[%clk 0:02:57.8]} 11. d4 {[%clk 0:02:49.3]}
11... Bb6 {[%clk 0:02:57.8]} 12. Bg5 {[%clk 0:02:48.4]} 12... Qd7 {[%clk
0:02:57.5]} 13. Na3 {[%clk 0:02:33.8]} 13... Rg8 {[%clk 0:02:20.7]} 14. Nc2
{[%clk 0:02:30.3]} 14... Na5 {[%clk 0:02:11.9]} 15. dxe5 {[%clk 0:02:16.8]}
15... Nxb3 {[%clk 0:02:11.7]} 16. axb3 {[%clk 0:02:17.4]} 16... Qe6 {[%clk
0:02:08.1]} 17. exd6 {[%clk 0:02:13.9]} 17... cxd6 {[%clk 0:02:06.9]} 18. Ncd4
{[%clk 0:02:12]} 18... Qg6 {[%clk 0:02:01.4]} 19. Nf5 {[%clk 0:02:07.5]} 19...
Bc7 {[%clk 0:01:41.8]} 20. e5 {[%clk 0:01:36.5]} 20... Bxf3 {[%clk 0:01:22.7]}
21. exd6+ {[%clk 0:01:30.9]} 21... Bxe2 {[%clk 0:01:22.5]} 22. Qxe2+ {[%clk
0:01:22.8]} 22... Qe6 {[%clk 0:01:21.9]} 23. Qf3 {[%clk 0:01:22.6]} 23... Rc8
{[%clk 0:01:07.8]} 24. Qc6+ {[%clk 0:01:19.5]} 24... Kf8 {[%clk 0:00:54.3]} 25.
Be7+ {[%clk 0:01:18.9]} 1-0

[Event "*** SCC Grand Prix: Titled Tuesday Blitz"]
[Site "Chess.com"]
[Date "2020.07.07"]
[Round "7"]
[White "whodee11"]
[Black "talaicito"]
[Result "1-0"]
[WhiteElo "2320"]
[BlackElo "2147"]
[TimeControl "180+1"]
[EndTime "11:17:08 PDT"]
[Termination "whodee11 won by checkmate"]

1. e4 {[%clk 0:03:00.9]} 1... e5 {[%clk 0:02:59.2]} 2. Bc4 {[%clk 0:03:00.5]}
2... Bc5 {[%clk 0:02:55.7]} 3. d3 {[%clk 0:03:01.4]} 3... Nc6 {[%clk 0:02:52.5]}
4. Nc3 {[%clk 0:03:00.2]} 4... d6 {[%clk 0:02:51.4]} 5. Na4 {[%clk 0:02:58.4]}
5... Nf6 {[%clk 0:02:38.7]} 6. Nxc5 {[%clk 0:02:58]} 6... dxc5 {[%clk 0:02:39]}
7. Bg5 {[%clk 0:02:51]} 7... Na5 {[%clk 0:02:34.7]} 8. Bb3 {[%clk 0:02:45.6]}
8... Nxb3 {[%clk 0:02:21.7]} 9. axb3 {[%clk 0:02:46.5]} 9... h6 {[%clk
0:02:15.8]} 10. Bh4 {[%clk 0:02:44]} 10... Qd6 {[%clk 0:02:15.3]} 11. Ne2 {[%clk
0:02:43]} 11... g5 {[%clk 0:02:05.8]} 12. Bg3 {[%clk 0:02:42.8]} 12... a6 {[%clk
0:01:54.5]} 13. Qd2 {[%clk 0:02:41.3]} 13... Be6 {[%clk 0:01:47.7]} 14. Qc3
{[%clk 0:02:40.5]} 14... Nd7 {[%clk 0:01:45]} 15. h4 {[%clk 0:02:39.8]} 15...
O-O-O {[%clk 0:01:40]} 16. hxg5 {[%clk 0:02:38.7]} 16... hxg5 {[%clk 0:01:39.8]}
17. Rxh8 {[%clk 0:02:39.6]} 17... Rxh8 {[%clk 0:01:39.5]} 18. O-O-O {[%clk
0:02:40.5]} 18... f6 {[%clk 0:01:38.7]} 19. f3 {[%clk 0:02:34.7]} 19... b5
{[%clk 0:01:31.3]} 20. Kb1 {[%clk 0:02:32.1]} 20... b4 {[%clk 0:01:23.6]} 21.
Qe1 {[%clk 0:02:27.6]} 21... a5 {[%clk 0:01:21.2]} 22. d4 {[%clk 0:02:27.2]}
22... cxd4 {[%clk 0:01:11.5]} 23. Nxd4 {[%clk 0:02:27.2]} 23... Nc5 {[%clk
0:00:51.5]} 24. Nf5 {[%clk 0:02:18.3]} 24... Qa6 {[%clk 0:00:44.1]} 25. Ne7+
{[%clk 0:02:12.7]} 25... Kb7 {[%clk 0:00:43.3]} 26. Nd5 {[%clk 0:02:13.1]} 26...
Rf8 {[%clk 0:00:32.3]} 27. Bf2 {[%clk 0:02:11.7]} 27... Qb5 {[%clk 0:00:26.7]}
28. Qe3 {[%clk 0:02:02.3]} 28... Na6 {[%clk 0:00:19.8]} 29. Qa7+ {[%clk
0:01:57.3]} 29... Kc8 {[%clk 0:00:19.8]} 30. Ne7# {[%clk 0:01:50.4]} 1-0

[Event "*** SCC Grand Prix: Titled Tuesday Blitz"]
[Site "Chess.com"]
[Date "2020.07.07"]
[Round "7"]
[White "PauloCesarCosta_sad"]
[Black "dianamirza"]
[Result "1-0"]
[WhiteElo "2204"]
[BlackElo "1963"]
[TimeControl "180+1"]
[EndTime "11:17:11 PDT"]
[Termination "PauloCesarCosta_sad won by resignation"]

1. Nf3 {[%clk 0:03:00.9]} 1... Nf6 {[%clk 0:02:56.4]} 2. c4 {[%clk 0:03:00.7]}
2... c5 {[%clk 0:02:55.7]} 3. g3 {[%clk 0:03:00.3]} 3... g6 {[%clk 0:02:55.8]}
4. Bg2 {[%clk 0:03:00.5]} 4... Bg7 {[%clk 0:02:56.7]} 5. O-O {[%clk 0:03:00.9]}
5... O-O {[%clk 0:02:57.4]} 6. d4 {[%clk 0:03:01.1]} 6... Nc6 {[%clk 0:02:58.3]}
7. Nc3 {[%clk 0:03:00.3]} 7... cxd4 {[%clk 0:02:58.2]} 8. Nxd4 {[%clk
0:03:00.5]} 8... d6 {[%clk 0:02:58.5]} 9. Nxc6 {[%clk 0:02:35.5]} 9... bxc6
{[%clk 0:02:56.7]} 10. Bxc6 {[%clk 0:02:36.4]} 10... Rb8 {[%clk 0:02:56.9]} 11.
Bg2 {[%clk 0:02:36.7]} 11... Ba6 {[%clk 0:02:53.7]} 12. Qa4 {[%clk 0:02:18.5]}
12... Qc8 {[%clk 0:02:40.8]} 13. Nb5 {[%clk 0:02:12.5]} 13... Bxb5 {[%clk
0:02:35.5]} 14. cxb5 {[%clk 0:02:12.4]} 14... Qc5 {[%clk 0:02:26.7]} 15. Bc6
{[%clk 0:02:04.8]} 15... Nd5 {[%clk 0:02:10.6]} 16. e4 {[%clk 0:02:04]} 16...
Nb6 {[%clk 0:02:08.1]} 17. Qxa7 {[%clk 0:01:57.2]} 17... Bd4 {[%clk 0:01:51.6]}
18. Qxe7 {[%clk 0:01:50.3]} 18... Nc4 {[%clk 0:01:46.6]} 19. Rb1 {[%clk
0:01:43.2]} 19... Ne5 {[%clk 0:01:30.7]} 20. Bh6 {[%clk 0:01:42.7]} 20... Nxc6
{[%clk 0:01:25.1]} 21. bxc6 {[%clk 0:01:41.9]} 21... Qxc6 {[%clk 0:01:25.4]} 22.
Bxf8 {[%clk 0:01:27.4]} 22... Rxf8 {[%clk 0:01:23.4]} 23. Rfc1 {[%clk
0:01:27.4]} 23... Qa4 {[%clk 0:01:21]} 24. Qxd6 {[%clk 0:01:17.3]} 24... Ba7
{[%clk 0:01:11.6]} 25. Qa3 {[%clk 0:01:09.7]} 25... Qd7 {[%clk 0:01:05.3]} 26.
Qf3 {[%clk 0:01:02.4]} 1-0

[Event "*** SCC Grand Prix: Titled Tuesday Blitz"]
[Site "Chess.com"]
[Date "2020.07.07"]
[Round "7"]
[White "NarminSoyunlu"]
[Black "Zarinur"]
[Result "0-1"]
[WhiteElo "2050"]
[BlackElo "2043"]
[TimeControl "180+1"]
[EndTime "11:17:17 PDT"]
[Termination "Zarinur won by resignation"]

1. g3 {[%clk 0:03:00.9]} 1... d5 {[%clk 0:02:57.1]} 2. Bg2 {[%clk 0:03:01.1]}
2... Nf6 {[%clk 0:02:56.5]} 3. c4 {[%clk 0:03:01.1]} 3... c6 {[%clk 0:02:54.5]}
4. Nf3 {[%clk 0:03:00]} 4... Bf5 {[%clk 0:02:49.3]} 5. cxd5 {[%clk 0:02:58.7]}
5... cxd5 {[%clk 0:02:48.7]} 6. Qb3 {[%clk 0:02:59.3]} 6... Qb6 {[%clk
0:02:44.8]} 7. Qxb6 {[%clk 0:02:55.8]} 7... axb6 {[%clk 0:02:45.7]} 8. Nc3
{[%clk 0:02:52.9]} 8... e6 {[%clk 0:02:42]} 9. Nb5 {[%clk 0:02:49.7]} 9... Na6
{[%clk 0:02:40.8]} 10. d3 {[%clk 0:02:48.5]} 10... Bb4+ {[%clk 0:02:34.9]} 11.
Bd2 {[%clk 0:02:46]} 11... O-O {[%clk 0:02:33.7]} 12. O-O {[%clk 0:02:33.1]}
12... Bxd2 {[%clk 0:02:29.9]} 13. Nxd2 {[%clk 0:02:33.7]} 13... Nb4 {[%clk
0:02:29.5]} 14. a3 {[%clk 0:02:30.7]} 14... Nc6 {[%clk 0:02:28.4]} 15. Nd6
{[%clk 0:02:28.7]} 15... Nd4 {[%clk 0:02:20.5]} 16. Bf3 {[%clk 0:01:42.9]} 16...
Bh3 {[%clk 0:02:12.7]} 17. Rfc1 {[%clk 0:01:37.3]} 17... Rfd8 {[%clk 0:01:58.2]}
18. Nxb7 {[%clk 0:01:10.2]} 18... Rd7 {[%clk 0:01:58.2]} 19. Nc5 {[%clk
0:01:08]} 19... bxc5 {[%clk 0:01:57.3]} 20. Rxc5 {[%clk 0:01:08.9]} 20... Rb7
{[%clk 0:01:51.8]} 21. b4 {[%clk 0:01:07.3]} 21... Rxb4 {[%clk 0:01:48.1]} 22.
e3 {[%clk 0:00:47.6]} 22... Nxf3+ {[%clk 0:01:45.1]} 23. Nxf3 {[%clk 0:00:48.5]}
23... Rb3 {[%clk 0:01:39.4]} 24. Ne5 {[%clk 0:00:44.9]} 24... h6 {[%clk
0:01:33.4]} 25. a4 {[%clk 0:00:44.2]} 25... Rxa4 {[%clk 0:01:31.4]} 26. Rc8+
{[%clk 0:00:41]} 26... Kh7 {[%clk 0:01:30.4]} 0-1

[Event "*** SCC Grand Prix: Titled Tuesday Blitz"]
[Site "Chess.com"]
[Date "2020.07.07"]
[Round "7"]
[White "Fandorine"]
[Black "Kobalia"]
[Result "1-0"]
[WhiteElo "2885"]
[BlackElo "2705"]
[TimeControl "180+1"]
[EndTime "11:17:22 PDT"]
[Termination "Fandorine won by resignation"]

1. e4 {[%clk 0:03:00.9]} 1... c6 {[%clk 0:02:59.9]} 2. Nf3 {[%clk 0:03:01.3]}
2... d5 {[%clk 0:03:00.8]} 3. d3 {[%clk 0:03:01.9]} 3... Bg4 {[%clk 0:03:00.7]}
4. h3 {[%clk 0:03:01.5]} 4... Bh5 {[%clk 0:03:01]} 5. g4 {[%clk 0:03:01.5]} 5...
Bg6 {[%clk 0:03:01]} 6. h4 {[%clk 0:03:02]} 6... h6 {[%clk 0:02:46.4]} 7. Ne5
{[%clk 0:02:51.3]} 7... Bh7 {[%clk 0:02:46.2]} 8. g5 {[%clk 0:02:51.6]} 8... Nd7
{[%clk 0:02:42.4]} 9. Nxd7 {[%clk 0:02:29.8]} 9... Qxd7 {[%clk 0:02:41.6]} 10.
Qe2 {[%clk 0:02:28.9]} 10... e6 {[%clk 0:02:37.4]} 11. Nc3 {[%clk 0:02:28.9]}
11... Bb4 {[%clk 0:02:36.1]} 12. Bd2 {[%clk 0:02:27.8]} 12... Ne7 {[%clk
0:02:34]} 13. Bg2 {[%clk 0:02:24.2]} 13... O-O-O {[%clk 0:02:27.7]} 14. O-O-O
{[%clk 0:02:24.1]} 14... hxg5 {[%clk 0:02:21.9]} 15. hxg5 {[%clk 0:02:23.4]}
15... d4 {[%clk 0:02:07.5]} 16. Na4 {[%clk 0:02:08.2]} 16... c5 {[%clk
0:01:48.8]} 17. Bxb4 {[%clk 0:02:06.9]} 17... cxb4 {[%clk 0:01:48.7]} 18. Nc5
{[%clk 0:02:07.1]} 18... Qc7 {[%clk 0:01:42.2]} 19. Nb3 {[%clk 0:02:04.1]} 19...
Ng6 {[%clk 0:01:29.9]} 20. Kb1 {[%clk 0:01:52.6]} 20... Nf4 {[%clk 0:01:28.9]}
21. Qg4 {[%clk 0:01:44.9]} 21... Bg6 {[%clk 0:01:20.8]} 22. Bf3 {[%clk
0:01:43.4]} 22... Qe5 {[%clk 0:01:03.3]} 23. Qg3 {[%clk 0:01:34.7]} 23... Rxh1
{[%clk 0:00:45.4]} 24. Rxh1 {[%clk 0:01:35.6]} 24... Kb8 {[%clk 0:00:37.8]} 25.
Rh4 {[%clk 0:01:31.2]} 1-0

[Event "*** SCC Grand Prix: Titled Tuesday Blitz"]
[Site "Chess.com"]
[Date "2020.07.07"]
[Round "7"]
[White "goofypenguin96"]
[Black "vesalhamedinia"]
[Result "1-0"]
[WhiteElo "2394"]
[BlackElo "2214"]
[TimeControl "180+1"]
[EndTime "11:17:22 PDT"]
[Termination "goofypenguin96 won on time"]

1. e4 {[%clk 0:03:00.9]} 1... c5 {[%clk 0:02:37.4]} 2. Nf3 {[%clk 0:03:00.3]}
2... e6 {[%clk 0:01:30.2]} 3. Nc3 {[%clk 0:02:57.5]} 3... Nc6 {[%clk 0:01:30]}
4. Bb5 {[%clk 0:02:55.7]} 4... Nf6 {[%clk 0:01:26.9]} 5. e5 {[%clk 0:02:53.6]}
5... Ng4 {[%clk 0:01:23.8]} 6. Bxc6 {[%clk 0:02:49.4]} 6... dxc6 {[%clk
0:01:21.4]} 7. d3 {[%clk 0:02:47]} 7... h5 {[%clk 0:01:07.6]} 8. O-O {[%clk
0:02:40.4]} 8... Be7 {[%clk 0:01:05.3]} 9. Ne4 {[%clk 0:02:37.9]} 9... b6 {[%clk
0:00:58.4]} 10. Bf4 {[%clk 0:02:36.2]} 10... a5 {[%clk 0:00:26.2]} 11. Nd6+
{[%clk 0:02:32.9]} 11... Bxd6 {[%clk 0:00:23.2]} 12. exd6 {[%clk 0:02:33.8]}
12... Ba6 {[%clk 0:00:15.9]} 13. h3 {[%clk 0:02:32]} 13... Nf6 {[%clk
0:00:15.1]} 14. Re1 {[%clk 0:02:31.7]} 14... Qd7 {[%clk 0:00:14.4]} 15. Ne5
{[%clk 0:02:28.9]} 15... Qb7 {[%clk 0:00:12.4]} 16. Bg5 {[%clk 0:02:23.4]} 16...
O-O-O {[%clk 0:00:11]} 17. Bxf6 {[%clk 0:02:13.6]} 17... gxf6 {[%clk 0:00:10.4]}
18. d7+ {[%clk 0:02:14]} 18... Kb8 {[%clk 0:00:08.3]} 19. Nxf7 {[%clk
0:02:12.7]} 19... Qxd7 {[%clk 0:00:08.3]} 20. Nxh8 {[%clk 0:02:11.8]} 20... Rxh8
{[%clk 0:00:08.6]} 21. Qf3 {[%clk 0:02:09.2]} 21... f5 {[%clk 0:00:03.2]} 22.
Qe3 {[%clk 0:02:05.6]} 22... Re8 {[%clk 0:00:00.9]} 23. Qe5+ {[%clk 0:02:04.4]}
1-0

[Event "*** SCC Grand Prix: Titled Tuesday Blitz"]
[Site "Chess.com"]
[Date "2020.07.07"]
[Round "7"]
[White "OnePeculiarConundrum"]
[Black "bmt011"]
[Result "1-0"]
[WhiteElo "2345"]
[BlackElo "2110"]
[TimeControl "180+1"]
[EndTime "11:17:24 PDT"]
[Termination "OnePeculiarConundrum won on time"]

1. e4 {[%clk 0:02:58.3]} 1... e6 {[%clk 0:02:59.4]} 2. d4 {[%clk 0:02:57.8]}
2... d5 {[%clk 0:02:59.6]} 3. e5 {[%clk 0:02:57.9]} 3... c5 {[%clk 0:02:58.8]}
4. c3 {[%clk 0:02:57.6]} 4... Nc6 {[%clk 0:02:58.5]} 5. Nf3 {[%clk 0:02:55.9]}
5... Qb6 {[%clk 0:02:58.2]} 6. a3 {[%clk 0:02:55.4]} 6... a5 {[%clk 0:02:46.3]}
7. Bd3 {[%clk 0:02:54.3]} 7... Bd7 {[%clk 0:02:44.9]} 8. Bc2 {[%clk 0:02:53.7]}
8... Nh6 {[%clk 0:02:33.2]} 9. O-O {[%clk 0:02:51.8]} 9... cxd4 {[%clk
0:02:08.5]} 10. cxd4 {[%clk 0:02:49.8]} 10... Nf5 {[%clk 0:02:07.7]} 11. Bxf5
{[%clk 0:02:48.9]} 11... exf5 {[%clk 0:02:07]} 12. Nc3 {[%clk 0:02:47.7]} 12...
Be6 {[%clk 0:02:04.2]} 13. Na4 {[%clk 0:02:46.6]} 13... Qd8 {[%clk 0:01:48.5]}
14. Be3 {[%clk 0:02:44.3]} 14... Be7 {[%clk 0:01:20.6]} 15. Rc1 {[%clk
0:02:42.8]} 15... g5 {[%clk 0:01:07.3]} 16. Nc5 {[%clk 0:02:40.8]} 16... Bc8
{[%clk 0:01:02.8]} 17. Qb3 {[%clk 0:02:29.1]} 17... f4 {[%clk 0:00:53]} 18. Bd2
{[%clk 0:02:23]} 18... g4 {[%clk 0:00:52.4]} 19. Nxb7 {[%clk 0:02:20.5]} 19...
Qc7 {[%clk 0:00:50.4]} 20. Nd6+ {[%clk 0:02:11.6]} 20... Bxd6 {[%clk 0:00:45.9]}
21. exd6 {[%clk 0:02:10.8]} 21... Qxd6 {[%clk 0:00:46.1]} 22. Ne5 {[%clk
0:02:09.3]} 22... Ra6 {[%clk 0:00:13.2]} 23. Bxf4 {[%clk 0:02:00.9]} 23... Qf6
{[%clk 0:00:07.2]} 24. Nxc6 {[%clk 0:01:59.7]} 24... Rxc6 {[%clk 0:00:07.3]} 25.
Rxc6 {[%clk 0:01:59.4]} 25... Qxc6 {[%clk 0:00:07.7]} 26. Rc1 {[%clk 0:01:59.4]}
26... Qd7 {[%clk 0:00:06.8]} 27. Qb8 {[%clk 0:01:58.8]} 27... O-O {[%clk
0:00:06.2]} 28. Qe5 {[%clk 0:01:57.6]} 28... Qe6 {[%clk 0:00:02.9]} 29. Qg5+
{[%clk 0:01:56.2]} 29... Qg6 {[%clk 0:00:02.9]} 30. Qxd5 {[%clk 0:01:56.3]} 1-0

[Event "*** SCC Grand Prix: Titled Tuesday Blitz"]
[Site "Chess.com"]
[Date "2020.07.07"]
[Round "7"]
[White "RestartingChess"]
[Black "novendrapriasmoro"]
[Result "0-1"]
[WhiteElo "2493"]
[BlackElo "2652"]
[TimeControl "180+1"]
[EndTime "11:17:37 PDT"]
[Termination "novendrapriasmoro won by resignation"]

1. e4 {[%clk 0:03:00.9]} 1... c5 {[%clk 0:02:57.6]} 2. Nf3 {[%clk 0:03:00.8]}
2... Nc6 {[%clk 0:02:57.7]} 3. b4 {[%clk 0:03:01]} 3... cxb4 {[%clk 0:02:49.2]}
4. d4 {[%clk 0:03:01.2]} 4... d6 {[%clk 0:02:41.5]} 5. d5 {[%clk 0:02:58.7]}
5... Nb8 {[%clk 0:02:39.6]} 6. Bb2 {[%clk 0:02:56.1]} 6... Nf6 {[%clk
0:02:39.6]} 7. Nbd2 {[%clk 0:02:51.1]} 7... Nbd7 {[%clk 0:02:37.3]} 8. Bd3
{[%clk 0:02:50.2]} 8... g6 {[%clk 0:02:36.5]} 9. h4 {[%clk 0:02:37.9]} 9... Bg7
{[%clk 0:02:34.1]} 10. Rb1 {[%clk 0:02:33.2]} 10... a5 {[%clk 0:02:32.7]} 11. g4
{[%clk 0:02:12.8]} 11... h6 {[%clk 0:02:29.2]} 12. h5 {[%clk 0:02:01.7]} 12...
g5 {[%clk 0:02:28.7]} 13. Nc4 {[%clk 0:01:55.6]} 13... Nc5 {[%clk 0:02:24.3]}
14. Qe2 {[%clk 0:01:54.8]} 14... Bxg4 {[%clk 0:02:22.2]} 15. Ne3 {[%clk
0:01:50.4]} 15... Bd7 {[%clk 0:02:02.8]} 16. Nd4 {[%clk 0:01:49]} 16... Nfxe4
{[%clk 0:01:56.5]} 17. Nef5 {[%clk 0:01:32.8]} 17... Bxf5 {[%clk 0:01:55.2]} 18.
Nxf5 {[%clk 0:01:32.1]} 18... Bc3+ {[%clk 0:01:55.4]} 19. Kd1 {[%clk 0:01:19.7]}
19... Nxd3 {[%clk 0:01:50.4]} 20. cxd3 {[%clk 0:01:15.2]} 20... Bxb2 {[%clk
0:01:44.7]} 21. Qxe4 {[%clk 0:01:14.6]} 21... Bf6 {[%clk 0:01:44.2]} 22. Re1
{[%clk 0:01:05.1]} 22... Qd7 {[%clk 0:01:42.9]} 23. Rc1 {[%clk 0:01:02]} 23...
a4 {[%clk 0:01:29.8]} 24. Ke2 {[%clk 0:01:00.8]} 24... b3 {[%clk 0:01:28.5]} 25.
axb3 {[%clk 0:01:01.1]} 25... axb3 {[%clk 0:01:27.7]} 26. Kf1 {[%clk 0:00:56.1]}
26... b2 {[%clk 0:01:27.6]} 27. Rc6 {[%clk 0:00:46.5]} 27... bxc6 {[%clk
0:01:23.6]} 28. dxc6 {[%clk 0:00:46.2]} 28... Qc7 {[%clk 0:01:23.9]} 29. Nxd6+
{[%clk 0:00:40.2]} 29... Qxd6 {[%clk 0:01:17.7]} 30. c7 {[%clk 0:00:41.1]} 30...
Rc8 {[%clk 0:01:17.4]} 31. Qb7 {[%clk 0:00:33.8]} 31... Qxc7 {[%clk 0:01:16.3]}
0-1

[Event "*** SCC Grand Prix: Titled Tuesday Blitz"]
[Site "Chess.com"]
[Date "2020.07.07"]
[Round "7"]
[White "Infernal_XaM"]
[Black "Onischuk_V"]
[Result "1-0"]
[WhiteElo "2954"]
[BlackElo "2889"]
[TimeControl "180+1"]
[EndTime "11:17:38 PDT"]
[Termination "Infernal_XaM won by resignation"]

1. e4 {[%clk 0:03:00.9]} 1... d6 {[%clk 0:02:59.2]} 2. d4 {[%clk 0:03:01.2]}
2... Nf6 {[%clk 0:02:59.8]} 3. f3 {[%clk 0:03:00.1]} 3... e5 {[%clk 0:02:58]} 4.
d5 {[%clk 0:02:59.2]} 4... c6 {[%clk 0:02:55.6]} 5. c4 {[%clk 0:02:59.5]} 5...
Be7 {[%clk 0:02:50.7]} 6. Nc3 {[%clk 0:02:59.8]} 6... O-O {[%clk 0:02:49.2]} 7.
Be3 {[%clk 0:03:00.2]} 7... a6 {[%clk 0:02:44.7]} 8. Qd2 {[%clk 0:02:59.1]} 8...
cxd5 {[%clk 0:02:43.3]} 9. cxd5 {[%clk 0:02:56.9]} 9... b5 {[%clk 0:02:43.5]}
10. g4 {[%clk 0:02:57.3]} 10... Nbd7 {[%clk 0:02:37]} 11. Nge2 {[%clk
0:02:47.5]} 11... Nc5 {[%clk 0:02:07.5]} 12. Ng3 {[%clk 0:02:47.3]} 12... b4
{[%clk 0:02:07.5]} 13. Nd1 {[%clk 0:02:38.7]} 13... a5 {[%clk 0:02:04.7]} 14.
Nf2 {[%clk 0:02:29.7]} 14... Nfd7 {[%clk 0:01:55.7]} 15. Nf5 {[%clk 0:02:26.7]}
15... Re8 {[%clk 0:01:33]} 16. h4 {[%clk 0:02:24.2]} 16... Bf8 {[%clk
0:01:30.4]} 17. h5 {[%clk 0:02:24.7]} 17... Qb6 {[%clk 0:01:29.4]} 18. Be2
{[%clk 0:02:20]} 18... Ba6 {[%clk 0:01:28]} 19. O-O {[%clk 0:02:18.6]} 19...
Bxe2 {[%clk 0:01:25.8]} 20. Qxe2 {[%clk 0:02:18.6]} 20... g6 {[%clk 0:01:22.1]}
21. hxg6 {[%clk 0:02:11.9]} 21... hxg6 {[%clk 0:01:21.3]} 22. Nh6+ {[%clk
0:02:02]} 22... Kg7 {[%clk 0:01:18.4]} 23. g5 {[%clk 0:02:00.9]} 23... Be7
{[%clk 0:01:16.3]} 24. Nfg4 {[%clk 0:01:58.8]} 24... Rh8 {[%clk 0:01:15.1]} 25.
f4 {[%clk 0:01:58]} 25... exf4 {[%clk 0:00:45.7]} 26. Rxf4 {[%clk 0:01:57.3]}
26... Raf8 {[%clk 0:00:34.2]} 27. Raf1 {[%clk 0:01:56.3]} 27... f6 {[%clk
0:00:31]} 28. gxf6+ {[%clk 0:01:56.4]} 28... Nxf6 {[%clk 0:00:30.8]} 29. Bd4
{[%clk 0:01:56.1]} 29... Qd8 {[%clk 0:00:29.5]} 30. Nxf6 {[%clk 0:01:42.5]}
30... Rxf6 {[%clk 0:00:09]} 31. Rxf6 {[%clk 0:01:41.7]} 1-0